Cogmind - Beta 11 @@@ ROGUE MODE // 2022.04.10 @ 20:01:55 Player: charson Result: Destroyed by S-43 Plague with Heavy Machine Gun Performance ------------- Evolutions (6) 3000 Regions Visited (21) 4200 Robots Destroyed (360) 1800 Value Destroyed (10959) 10959 Prototype IDs (51) 1020 Alien Tech Used (0) 0 Bonus (6170) 6170 TOTAL SCORE: 27149 Bonus ------- High Alert Combat Kills 444 Follower Combat Kills 871 Met Data Miner 300 Met Imprinter 300 Was Imprinted 300 Met Warlord at Base 500 MAIN.C Attacked Warlord 500 Warlord Defense Kill 4198 Friendly Fire -1243 Cogmind --------- Core Integrity 0/1150 Matter 263/300 Energy 98/100 System Corruption 0% Temperature Cool (0) Movement Core (50) Location -3/Proximity Caves Parts ------- > --- POWER (2) -------- (None) > --- PROPULSION (6) --- (None) > --- UTILITY (9) ------ (None) > --- WEAPON (2) ------- (None) > --- INVENTORY (5) ---- Light Antimatter Reactor Hardened Heavy Armor Plating Improved Medium Armor Plating Improved Remote Datajack Peak State ------------ > --- POWER ------------ Reinforced Fission Core Micro Fission Core > --- PROPULSION ------- Antigrav System Antigrav System Gyrokinetic Inverter Improved Gyrokinetic Inverter Improved Gyrokinetic Inverter Improved Gyrokinetic Inverter > --- UTILITY ---------- Advanced Cooling System Large Storage Unit Experimental Optical Array Advanced Signal Interpreter Phase Shifter Improved Medium Armor Plating Advanced Hacking Suite System Shield Makeshift System Shield > --- WEAPON ----------- RU-N14's Throwing Claymores v3 CR-A16's Behemoth Slayer > --- INVENTORY -------- Neutrino Core Advanced Reaction Control System Insulated Plating Insulated Plating Improved Recalibrator Vortex Driver Vortex Driver Railgun Railgun Improved Remote Datajack RU-N14's Throwing Claymores v3 RU-N14's Throwing Claymores v3 RU-N14's Throwing Claymores v3 RU-N14's Throwing Claymores v3 GAL Module [Rating: 121] Favorites ----------- Power Micro Nuclear Core Engine Light Ion Engine Power Core Micro Nuclear Core Reactor Light Antimatter Reactor Propulsion Aerolev Unit Treads Armored Treads Leg Flexi-carbon Leg Wheel Wheel Hover Unit Aerolev Unit Flight Unit Improved Diametric Drive Utility Makeshift System Shield Device Structural Scanner Storage High-capacity Storage Unit Processor Advanced Signal Interpreter Hackware Makeshift System Shield Protection Makeshift Armor Plating Weapon Power Sword Energy Gun Shock Rifle Energy Cannon Disruptor Cannon Ballistic Gun Heavy Assault Rifle Ballistic Cannon Flak Cannon Launcher Improved Grenade Launcher Special Weapon Improved Remote Datajack Impact Weapon Makeshift Hammer Slashing Weapon Power Sword Piercing Weapon CR-A16's Behemoth Slayer Special Melee Weapon Advanced Datajack Build | -11 -10 -10 -10 -9 -8 -8 -7 -7 -7 -6 -6 -6 -6 -6 -5 -5 -4 -4 -4 -4 -3 ------- Run | Scr Mat Min Exi Min Mat Sto Fac Low Dat Pro Fac Low Low Zio Pro Fac Fac Upp Upp War Pro Slots Evolved 12 | . . . . . 4 . 2 . . . 2 . . . . 2 2 . . . . Power 1 | . . . . . . . . . . . . . . . . . 1 . . . . Propulsion 4 | . . . . . 1 . 1 . . . . . . . . 2 . . . . . Utility 7 | . . . . . 3 . 1 . . . 2 . . . . . 1 . . . . Weapon . | . . . . . . . . . . . . . . . . . . . . . . Parts Attached 481 | 7 15 19 3 7 56 56 45 3 . 5 37 15 11 15 18 48 40 37 3 38 3 Power 53 | 1 1 4 . 2 4 5 3 . . . 3 2 . . 2 7 4 5 . 9 1 Engine 23 | 1 1 4 . 2 4 1 2 . . . 1 . . . . 4 2 1 . . . Core 26 | . . . . . . 4 1 . . . 2 2 . . 2 3 1 4 . 7 . Reactor 4 | . . . . . . . . . . . . . . . . . 1 . . 2 1 Propulsion 144 | 2 3 2 . 3 21 15 12 . . . 14 5 1 . 4 24 17 13 . 8 . Treads 25 | . . . . . 3 12 . . . . . . . . 4 6 . . . . . Leg 7 | . . . . . . . . . . . . . . . . 6 . . . 1 . Wheel 31 | 2 2 2 . 3 17 2 1 . . . . . . . . 2 . . . . . Hover 78 | . . . . . 1 1 11 . . . 14 5 1 . . 10 17 13 . 5 . Flight 3 | . 1 . . . . . . . . . . . . . . . . . . 2 . Utility 161 | 2 3 . 3 . 12 13 20 2 . 1 15 7 2 14 9 12 17 11 1 16 1 Device 73 | 1 . . . . 2 3 9 . . . 8 5 . 3 6 3 14 8 . 11 . Storage 8 | 1 1 . 2 . . . 2 . . . . . . . 1 1 . . . . . Processor 33 | . 2 . 1 . 3 3 3 1 . 1 3 . 2 9 . 4 1 . . . . Hackware 10 | . . . . . . . 2 1 . . 1 . . 2 . . 2 2 . . . Protection 37 | . . . . . 7 7 4 . . . 3 2 . . 2 4 . 1 1 5 1 Artifact . | . . . . . . . . . . . . . . . . . . . . . . Weapon 123 | 2 8 13 . 2 19 23 10 1 . 4 5 1 8 1 3 5 2 8 2 5 1 Energy Gun 5 | 1 . . . . 2 2 . . . . . . . . . . . . . . . Energy Cannon 4 | . . . . . . . . . . . . . . . . 1 . 1 . 2 . Ballistic Gun 44 | 1 5 8 . 2 8 13 1 . . . . . 1 . . 1 . 2 2 . . Ballistic Cannon 7 | . . . . . 5 . . . . . 1 . . . . 1 . . . . . Launcher 25 | . 3 5 . . 3 3 5 . . . . . 3 . 1 . . 2 . . . Special Weapon 5 | . . . . . . . . . . . . . . . . . 1 1 . 2 1 Impact Weapon 9 | . . . . . 1 5 3 . . . . . . . . . . . . . . Slashing Weapon 17 | . . . . . . . . 1 . 4 4 1 4 1 . 1 . 1 . . . Piercing Weapon 6 | . . . . . . . 1 . . . . . . . 2 1 . 1 . 1 . Special Melee Weapon 1 | . . . . . . . . . . . . . . . . . 1 . . . . Unidentified Prototypes 20 | . . . . . 2 4 1 . . . . . . 6 . . . . . 7 . Corrupted Parts 1 | . . . . . . . . . . . . . . . . . . 1 . . . System Corruption 13 | . . . . . . . . . . . . . . . . . . 13 . . . Parts Lost 118 | . . 1 . . 13 12 . . . . 6 11 7 . 7 20 1 26 . 14 . Power 15 | . . . . . 1 2 . . . . . 1 . . 1 2 . 5 . 3 . Propulsion 47 | . . . . . 5 4 . . . . 3 5 3 . 2 11 1 11 . 2 . Utility 42 | . . . . . 5 2 . . . . 3 4 3 . 4 6 . 7 . 8 . Weapon 14 | . . 1 . . 2 4 . . . . . 1 1 . . 1 . 3 . 1 . Highest Loss Streak 9 | . . 1 . . 7 6 . . . . 3 6 2 . 6 4 1 6 . 9 . To Critical Strikes 2 | . . . . . . . . . . . . . . . . . . 1 . 1 . Average Slot Usage (%) 93 | . 99 99 94 100 96 95 98 100 100 100 99 90 91 80 92 91 95 82 100 94 . Engine 3 | . 14 14 14 14 9 1 6 . . . 2 1 . . . . 4 . . . . Core 3 | . . . . . . 6 . 7 7 7 3 4 6 6 5 3 . 4 10 9 . Treads 6 | . . . . . 9 23 . . . . . . . . 21 13 1 . . . . Wheel 5 | . 27 28 28 28 17 1 . . . . . . . . . 1 . . . . . Hover 14 | . . . . . . . 29 30 30 30 25 23 22 13 . 9 29 25 31 28 . Device 8 | . . . . . 9 6 7 7 7 7 18 12 11 2 10 2 11 9 10 9 . Storage 6 | . 14 14 12 14 9 9 7 7 7 7 6 6 6 6 . 3 5 5 5 4 . Processor 17 | . 13 14 10 14 15 21 22 23 23 23 14 13 18 26 20 24 19 10 10 9 . Hackware 5 | . . . . . . . 4 7 7 7 8 9 6 11 6 5 9 15 15 14 . Protection 4 | . . . . . 8 7 2 . . . 3 6 5 . 10 8 . . 5 5 . Ballistic Gun 4 | . 26 26 28 28 5 10 1 . . . . . . . . . . . 4 2 . Ballistic Cannon 1 | . . . . . 11 . . . . . 2 1 . . . 1 . . . . . Impact Weapon 1 | . . . . . . 3 6 5 . . . . . . . . . . . . . Slashing Weapon 2 | . . . . . . . . 1 7 8 10 8 10 11 6 2 . . . . . Piercing Weapon 1 | . . . . . . . . . . . . . . . 5 4 5 4 2 4 . Naked Turns 233 | . . . . . . . . . . . . . . . . . . . . 11 222 Heaviest Build 85 | 14 49 48 45 49 63 63 60 27 26 27 36 36 31 22 30 47 62 62 67 85 . Greatest Support 120 | 20 20 20 20 26 26 60 60 33 33 33 35 34 34 18 96 120 68 69 69 69 3 Greatest Overweight (x) 6 | . 4 2 2 2 6 6 1 . . . 1 2 1 1 3 4 1 4 . 3 . Average Overweight (x) . | . 1 2 1 1 2 . . . . . . . . 1 . . . . . . . Largest Inventory Capacity 35 | 8 20 20 35 20 20 20 20 10 10 10 10 10 10 10 35 15 15 15 15 15 5 Average Capacity 13 | 6 18 20 18 20 20 20 9 10 10 10 10 10 10 10 5 11 15 15 15 14 5 Most Carried 20 | 8 20 20 20 20 20 20 20 10 10 10 10 10 10 10 10 15 15 15 15 15 5 Average Carried 13 | 4 16 19 17 19 19 19 9 9 10 9 9 8 7 8 5 10 14 13 13 13 4 Final Capacity 20 | 8 20 20 20 20 20 20 10 10 10 10 10 10 10 10 5 15 15 15 15 5 5 Final Carried 20 | 8 20 20 20 20 20 20 10 10 10 10 10 10 5 10 5 14 15 13 15 5 5 Class Distribution -------------------- 39% | Scavenger-Mutant 14% | Hacker-Mutant 11% | Scout 9% | Mutant 4% | Scavenger-Skirmisher 4% | Hacker-Assassin 3% | Scavenger-Assassin 3% | Derelict-Scout 3% | Scavenger-Scout Dominant Class ---------------- Mutant | -10/Materials Mutant | -10/Mines Scavenger-Mutant | -10/Exiles Scavenger-Mutant | -9/Mines Scavenger-Mutant | -8/Materials Scavenger-Mutant | -8/Storage Scout | -7/Factory Scout | -7/Lower Caves Scout | -7/Data Miner Scout | -6/Proximity Caves Derelict-Scout | -6/Factory Scavenger-Mutant | -6/Lower Caves Scavenger-Mutant | -6/Lower Caves Scavenger-Mutant | -6/Zion Scavenger-Mutant | -5/Proximity Caves Scavenger-Mutant | -5/Factory Hacker-Scout | -4/Factory Hacker-Mutant | -4/Upper Caves Scavenger-Mutant | -4/Upper Caves Hacker-Mutant | -4/Warlord Mutant | -3/Proximity Caves Resources | -11 -10 -10 -10 -9 -8 -8 -7 -7 -7 -6 -6 -6 -6 -6 -5 -5 -4 -4 -4 -4 -3 ----------- Run | Scr Mat Min Exi Min Mat Sto Fac Low Dat Pro Fac Low Low Zio Pro Fac Fac Upp Upp War Pro Matter Collected 8522 | 269 261 345 168 122 2214 1271 561 222 . 64 360 139 210 99 181 581 454 582 69 350 . Remotely 310 | . . . . . . 103 . . . . . 20 187 . . . . . . . . Salvage Created 13140 | 100 290 283 . 402 2094 2369 1141 168 . 64 1630 294 143 . 178 1246 888 1135 99 616 . Parts 685 | 11 30 36 . 15 110 104 34 3 . 3 121 13 6 . 16 72 52 38 . 21 . Haulers Intercepted 23 | . 1 . . . 6 6 3 . . . 3 . . . . 2 2 . . . . Recyclers Shooed 17 | . 2 1 . 3 7 1 3 . . . . . . . . . . . . . . Parts Field Recycled . | . . . . . . . . . . . . . . . . . . . . . . Retrieved Matter . | . . . . . . . . . . . . . . . . . . . . . . Parts Self-Destructed 152 | . . . . . . . . 1 . 5 . 12 3 . 11 . . 19 9 92 . Prevented 24 | . . . . . . . . . . . . 2 2 . 13 . . 3 . 4 . Kills | -11 -10 -10 -10 -9 -8 -8 -7 -7 -7 -6 -6 -6 -6 -6 -5 -5 -4 -4 -4 -4 -3 ------- Run | Scr Mat Min Exi Min Mat Sto Fac Low Dat Pro Fac Low Low Zio Pro Fac Fac Upp Upp War Pro Combat Hostiles Destroyed 207 | . 10 13 . 2 39 32 6 3 . 1 16 7 7 . 2 15 4 20 . 30 . Melee 58 | . . . . . . 7 . . . . 16 6 3 . 2 12 4 8 . . . Guns 33 | . 4 3 . 2 9 13 . . . . . . . . . 2 . . . . . Cannons 24 | . . . . . 20 3 . . . . . . . . . 1 . . . . . AOE 88 | . 6 10 . . 10 6 6 2 . 1 . 1 4 . . . . 12 . 30 . Classes Destroyed 26 | 2 5 . . 1 3 3 1 . . 1 1 2 1 . 1 . . . . 5 . Worker 33 | . . . . 2 6 3 9 . . . 8 . . . . 2 3 . . . . Builder 23 | . 1 2 . 1 4 1 . . . . 10 . . . . . 4 . . . . Tunneler 9 | 2 . 1 . 1 1 . 1 . . . 2 . . . . 1 . . . . . Hauler 23 | . 1 . . . 6 6 3 . . . 3 . . . . 2 2 . . . . Recycler 30 | 1 1 1 . 3 7 7 7 . . . 1 . . . . 1 1 . . . . Minesweeper 3 | . . . . . . . . . . . . 1 . . . . . 2 . . . Mechanic 2 | . . . . . . 1 . . . . . . . . . . . . . 1 . Operator 8 | . . . . . 2 1 1 . . . 1 . . . . 1 2 . . . . Watcher 22 | . 3 . . . 3 2 4 . . . 6 . . . . 1 3 . . . . Swarmer 55 | . 9 11 . . 7 . 4 . . 1 9 5 . . . . . 8 . 1 . Saboteur 2 | . . . . . . . . . . . . . . . . . . . . 2 . Grunt 80 | . 1 2 . 2 25 22 . 3 . . 3 1 4 . . . . 4 . 13 . Brawler 4 | . . . . . . 2 . . . . . . . . . . . 1 . 1 . Duelist 4 | . . . . . 1 1 . . . . . . 1 . . . . . . 1 . Protector 1 | . . . . . . 1 . . . . . . . . . . . . . . . Sentry 17 | . . . . . 6 6 . . . . 1 . . . . 2 . 2 . . . Specialist 2 | . . . . . . . . . . . . . . . . . . . . 2 . Hunter 13 | . . . . . . . . . . . 1 . . . 2 7 . . . 3 . Programmer 25 | . . . . . . . 2 . . . 2 1 1 . . 6 4 5 . 4 . Behemoth 1 | . . . . . . . . . . . . . . . . . . . . 1 . Striker 1 | . . . . . . . . . . . . . . . . . . . . 1 . Executioner 1 | . . . . . . . . . . . . . . . . . . . . 1 . Decomposer 1 | . . . . . . . . 1 . . . . . . . . . . . . . Packrat 2 | . . . . . . . . . . . . . . . . . . 1 1 . . Samaritan 2 | . . . . . . . . . . 1 . . . . . . . 1 . . . Tinkerer 1 | . . . . . . . . . . . . 1 . . . . . . . . . Thief 1 | . . . . . . . . . . . . . 1 . . . . . . . . Butcher 1 | . . . . . . . . . . . . . . . . . . . . 1 . Mutant 1 | . . . . . . . . . . . . . . . 1 . . . . . . Commander 1 | . . . . . . . . . . . . . . . . . . . . 1 . Best Kill Streak 12 | 3 4 3 . 4 6 12 5 2 . 1 10 3 4 . 2 2 4 12 . 10 . Combat Bots Only 12 | . 3 3 . 2 6 10 4 2 . 1 4 3 4 . 2 2 1 12 . 9 . Max Kills in Single Turn 5 | 1 3 3 . 1 3 3 3 1 . 1 1 1 1 . 1 1 1 4 1 5 . Gunslinging . | . . . . . . . . . . . . . . . . . . . . . . Exploded 5 | . 3 3 . . 3 2 3 1 . 1 . 1 1 . . . . 4 . 5 . Melee 1 | . . . . . . 1 . . . . 1 1 1 . 1 1 1 1 . . . Uniques/NPCs Destroyed . | . . . . . . . . . . . . . . . . . . . . . . Combat | -11 -10 -10 -10 -9 -8 -8 -7 -7 -7 -6 -6 -6 -6 -6 -5 -5 -4 -4 -4 -4 -3 -------- Run | Scr Mat Min Exi Min Mat Sto Fac Low Dat Pro Fac Low Low Zio Pro Fac Fac Upp Upp War Pro Damage Taken 18522 | . 136 263 . 209 2260 2846 325 82 . 18 900 1283 450 . 852 4374 398 2066 47 1629 384 Core 3166 | . 22 90 . 67 261 275 30 25 . . 144 173 42 . 263 620 62 267 . 441 384 Absorbed by Shields . | . . . . . . . . . . . . . . . . . . . . . . Redirected to Shielding 316 | . . . . . . . . . . . . 106 . . . 210 . . . . . Regen/Repaired (Parts) 1278 | . 7 . . . . 804 56 . . . 195 . . . . 197 19 . . . . Core Remaining (%) 47 | 100 . . . 28 . 2 . . . 92 . . . . 26 38 . . . . . Volleys Fired 427 | 5 36 25 . 26 152 88 17 10 . 1 . 4 10 . 3 16 6 11 . 16 1 Largest 2 | 2 2 2 . 2 2 2 2 1 . 1 . 1 1 . 1 2 1 1 . 1 1 Hottest 104 | 60 60 50 . 40 88 88 46 39 . 39 . 48 36 . 36 104 7 49 . . 7 Shots Fired 728 | 10 67 43 . 52 292 155 26 10 . 1 . 4 10 . 3 20 6 10 2 16 1 Gun 436 | 10 62 33 . 52 127 124 18 . . . . . . . . 7 . 1 2 . . Cannon 195 | . . . . . 155 23 . . . . . 4 . . . 13 . . . . . Launcher 74 | . 5 10 . . 10 8 8 10 . 1 . . 10 . 3 . . 9 . . . Special 23 | . . . . . . . . . . . . . . . . . 6 . . 16 1 Kinetic 612 | 5 61 33 . 52 282 138 18 . . . . 4 . . . 16 . 1 2 . . Thermal 15 | 5 1 . . . . 9 . . . . . . . . . . . . . . . Explosive 90 | . 5 10 . . 10 8 8 10 . 1 . . 10 . 3 . . 9 . 16 . Electromagnetic 4 | . . . . . . . . . . . . . . . . 4 . . . . . Robot Hit Streak 29 | 2 11 13 . 8 18 29 6 . . . . 1 5 . . 12 4 12 1 . 2 Robot Miss Streak 19 | 2 4 3 . 2 19 10 4 2 . . . 4 1 . . 1 2 1 . . . Penetration Max . | . . . . . . . . . . . . . . . . . . . . . . Secondary Targets 7 | . . 2 . 1 1 3 . . . . . . . . . . . . . . . Max Gunslinging Chain 1 | . . 1 . 1 1 1 . . . . . . . . . . . . . . . Shots Hit Robots 800 | 6 42 22 . 34 214 157 38 5 . 1 82 23 16 . 9 76 35 36 2 1 1 Core Hits 590 | 4 24 25 . 19 180 96 15 6 . 2 43 6 13 . 4 29 16 32 . 76 . Critical Kills 6 | . . 1 . . . 1 2 2 . . . . . . . . . . . . . Critical Parts Destroyed 11 | . 1 . . . 1 5 4 . . . . . . . . . . . . . . Critical Strikes 75 | . 1 1 . . 2 7 6 2 . . 4 2 . . . 22 15 11 1 1 . Destroy 3 | . 1 1 . . 1 . . . . . . . . . . . . . . . . Blast 2 | . . . . . 1 . . . . . . . . . . 1 . . . . . Smash 15 | . . . . . . 7 6 2 . . . . . . . . . . . . . Sever 10 | . . . . . . . . . . . 4 2 . . . 3 . . . 1 . Impale 45 | . . . . . . . . . . . . . . . . 18 15 11 1 . . Melee Attacks 684 | . . . . . 1 47 120 15 . 9 178 35 23 27 28 90 57 43 1 10 . Impact 183 | . . . . . 1 47 120 15 . . . . . . . . . . . . . Slashing 309 | . . . . . . . . . . 9 178 35 23 27 7 30 . . . . . Piercing 192 | . . . . . . . . . . . . . . . 21 60 57 43 1 10 . Sneak Attacks 85 | . . . . . . 7 18 2 . 1 25 4 1 . 2 7 12 5 1 . . Combat Hostiles 3 | . . . . . . . . 1 . . . 1 1 . . . . . . . . Follow-up Attacks 21 | . . . . . . . . . . . 12 . . . 2 7 . . . . . Damage Inflicted 40965 | 76 833 830 . 250 4805 4275 2737 893 . 140 4539 1176 1288 . 432 2896 1831 3266 70 10628 . Guns 4218 | 76 442 175 . 250 1329 1639 171 . . . . . . . . 119 . 17 . . . Cannons 3160 | . . . . . 2412 407 . . . . . 25 . . . 316 . . . . . Explosions 16418 | . 369 655 . . 1045 662 334 436 . 55 . . 876 . . . . 1666 . 10320 . Melee 16819 | . . . . . . 1554 2232 457 . 85 4539 1151 412 . 432 2455 1831 1583 70 18 . Ramming 60 | . 22 . . . 19 13 . . . . . . . . . 6 . . . . . Kinetic 7206 | 54 430 175 . 250 3741 1917 171 . . . . 25 . . . 426 . 17 . . . Thermal 163 | 22 12 . . . . 129 . . . . . . . . . . . . . . . Explosive 16418 | . 369 655 . . 1045 662 334 436 . 55 . . 876 . . . . 1666 . 10320 . Electromagnetic 9 | . . . . . . . . . . . . . . . . 9 . . . . . Impact 4243 | . . . . . . 1554 2232 457 . . . . . . . . . . . . . Slashing 7296 | . . . . . . . . . . 85 4539 1151 412 . 166 653 . . . 290 . Piercing 5570 | . . . . . . . . . . . . . . . 266 1802 1831 1583 70 18 . Highest Corruption 22 | . . . . . 8 8 1 . . . 1 1 . . . 4 2 22 22 22 . Average Corruption 6 | . . . . . 7 8 1 . . . 1 1 . . . 2 1 11 22 22 . Corruption Purged 2 | . . . . . . . 1 . . . . 1 . . . . . . . . . Corruption Blocked . | . . . . . . . . . . . . . . . . . . . . . . Effects 296 | . . . . . 37 105 . . . . 14 5 . . . 28 15 75 16 1 . Message Errors 74 | . . . . . 6 20 . . . . 4 1 . . . 9 4 25 4 1 . Matter Fused 66 | . . . . . 11 26 . . . . . . . . . 7 1 18 3 . . Heat Flow Errors 27 | . . . . . 3 13 . . . . 2 . . . . 2 2 5 . . . Energy Discharges 44 | . . . . . 7 14 . . . . 3 1 . . . 5 5 9 . . . Parts Rejected 6 | . . . . . 1 3 . . . . . . . . . 1 . 1 . . . Data Loss (minor) 39 | . . . . . 3 14 . . . . 3 2 . . . 2 3 7 5 . . Data Loss (major) 13 | . . . . . 2 3 . . . . 1 1 . . . 1 . 5 . . . Misfires 8 | . . . . . 1 4 . . . . . . . . . . . 1 2 . . Alerts 7 | . . . . . 2 3 . . . . 1 . . . . 1 . . . . . Misdirections 4 | . . . . . . . . . . . . . . . . . . 2 2 . . Weapon Failures 8 | . . . . . 1 5 . . . . . . . . . . . 2 . . . Overload Shots . | . . . . . . . . . . . . . . . . . . . . . . Overflow Damage 5193 | . . 53 . . 27 544 1233 199 . . 482 346 180 . . 243 1008 584 137 157 . Projectiles 49 | . . . . . 12 12 . . . . . . . . . 12 . . . 13 . Explosions 431 | . . 53 . . 15 12 . 20 . . . . 99 . . . . 88 . 144 . Melee 4713 | . . . . . . 520 1233 179 . . 482 346 81 . . 231 1008 496 137 . . Knockbacks 59 | . . . . . 32 18 5 1 . . . . . . . 3 . . . . . Impact 9 | . . . . . . 3 5 1 . . . . . . . . . . . . . Kinetic 46 | . . . . . 30 13 . . . . . . . . . 3 . . . . . Secondary 4 | . . . . . 2 2 . . . . . . . . . . . . . . . Self-Inflicted Damage 427 | . 23 82 . . 51 104 38 24 . 18 . . . . . . . 87 . . . Shots 15 | . 1 5 . . 2 3 1 1 . 1 . . . . . . . 1 . . . Rammed 6 | . 1 . . . 1 2 . . . . . . . . . 2 . . . . . Targets Rammed 6 | . 1 . . . 1 2 . . . . . . . . . 2 . . . . . Kicked . | . . . . . . . . . . . . . . . . . . . . . . Crushed . | . . . . . . . . . . . . . . . . . . . . . . Highest Temperature 471 | . 6 22 . 18 337 471 3 5 . . 255 12 14 269 . 232 455 218 30 155 . Average Temperature 89 | . 6 10 . 10 77 141 2 3 . . 111 7 6 147 . 80 128 45 8 24 . Received Heat Transfer 3675 | . 18 48 . 90 1278 1440 24 27 . . 117 174 102 . 57 111 . 99 . 90 . Effects 28 | . . . . . 3 9 . . . . . . . . . 2 14 . . . . Shutdowns 6 | . . . . . 1 2 . . . . . . . . . . 3 . . . . Energy Bleed 4 | . . . . . 2 2 . . . . . . . . . . . . . . . Interference 15 | . . . . . . 4 . . . . . . . . . 2 9 . . . . Short Circuit 3 | . . . . . . 1 . . . . . . . . . . 2 . . . . Siege Activations . | . . . . . . . . . . . . . . . . . . . . . . Robots Corrupted . | . . . . . . . . . . . . . . . . . . . . . . Combat Hostiles . | . . . . . . . . . . . . . . . . . . . . . . Parts Fried 30 | . . . . . . 9 20 1 . . . . . . . . . . . . . Impact Corruptions 55 | . . . . . . 18 33 4 . . . . . . . . . . . . . Robots Melted . | . . . . . . . . . . . . . . . . . . . . . . Combat Hostiles . | . . . . . . . . . . . . . . . . . . . . . . Parts Melted 3 | . . . . . 1 1 . . . . . . . . . . . 1 . . . Heat Transferred 408 | 50 25 . . . . 333 . . . . . . . . . . . . . . . Parts Sabotaged . | . . . . . . . . . . . . . . . . . . . . . . Parts Stolen . | . . . . . . . . . . . . . . . . . . . . . . Parts Stripped . | . . . . . . . . . . . . . . . . . . . . . . Power Chain Reactions . | . . . . . . . . . . . . . . . . . . . . . . Missiles Intercepted . | . . . . . . . . . . . . . . . . . . . . . . Alert | -11 -10 -10 -10 -9 -8 -8 -7 -7 -7 -6 -6 -6 -6 -6 -5 -5 -4 -4 -4 -4 -3 ------- Run | Scr Mat Min Exi Min Mat Sto Fac Low Dat Pro Fac Low Low Zio Pro Fac Fac Upp Upp War Pro Peak Influence 810 | 15 329 444 . 252 629 598 497 . . . 810 . . . . 178 231 . . . . Initial 258 | . 9 81 . . 20 258 228 . . . 40 . . . . . 63 . . . . Average 268 | 4 160 325 . 114 344 419 211 . . . 409 . . . . 60 96 . . . . Maximum Alert Level 3 | . 1 2 . 1 2 2 2 . . . 3 . . . . . 1 . . . . Low Security (%) 45 | 100 72 2 . 77 32 . 47 . . . 28 . . . . 100 96 . . . . Level 1 22 | . 27 87 . 22 17 39 37 . . . 3 . . . . . 3 . . . . Level 2 30 | . . 9 . . 50 60 14 . . . 63 . . . . . . . . . . Level 3 . | . . . . . . . . . . . 4 . . . . . . . . . . Level 4 . | . . . . . . . . . . . . . . . . . . . . . . Level 5 . | . . . . . . . . . . . . . . . . . . . . . . High Security . | . . . . . . . . . . . . . . . . . . . . . . Max Security . | . . . . . . . . . . . . . . . . . . . . . . Squads Dispatched 37 | . 1 . . . 7 5 5 . . . 8 . . . . 8 3 . . . . Investigation 10 | . 1 . . . 3 1 2 . . . 1 . . . . 1 1 . . . . Extermination 10 | . . . . . . . 2 . . . 2 . . . . 4 2 . . . . Reinforcement 12 | . . . . . 4 2 . . . . 4 . . . . 2 . . . . . Assault 3 | . . . . . . 2 . . . . 1 . . . . . . . . . . Garrison 2 | . . . . . . . 1 . . . . . . . . 1 . . . . . Intercept . | . . . . . . . . . . . . . . . . . . . . . . Searches Triggered 1 | . . . . . . . . . . . 1 . . . . . . . . . . Data Miner Redirects 2 | . . . . . . . . . . . 1 . . . . 1 . . . . . Construction Impeded 1 | . . . . . 1 . . . . . . . . . . . . . . . . Haulers Reinforced 2 | . . . . . . . . . . . 2 . . . . . . . . . . Active Scanning Responses . | . . . . . . . . . . . . . . . . . . . . . . Cargo Convoy Interrupts . | . . . . . . . . . . . . . . . . . . . . . . Stealth | -11 -10 -10 -10 -9 -8 -8 -7 -7 -7 -6 -6 -6 -6 -6 -5 -5 -4 -4 -4 -4 -3 --------- Run | Scr Mat Min Exi Min Mat Sto Fac Low Dat Pro Fac Low Low Zio Pro Fac Fac Upp Upp War Pro Distress Signals 13 | . 1 . . . 5 4 1 . . . 2 . . . . . . . . . . Communications Jammed . | . . . . . . . . . . . . . . . . . . . . . . Distress Signals . | . . . . . . . . . . . . . . . . . . . . . . Times Spotted 437 | . 18 14 . 8 61 43 33 6 . 4 48 23 14 . 11 33 20 24 3 65 9 Peak Tracking Total 18 | . 4 3 . 3 7 10 5 4 . 3 4 8 4 . 5 10 5 7 2 18 5 Tactical Retreats 57 | . 2 1 . . 4 . 11 1 . 1 9 8 3 . . 2 2 5 . 4 4 Traps | -11 -10 -10 -10 -9 -8 -8 -7 -7 -7 -6 -6 -6 -6 -6 -5 -5 -4 -4 -4 -4 -3 ------- Run | Scr Mat Min Exi Min Mat Sto Fac Low Dat Pro Fac Low Low Zio Pro Fac Fac Upp Upp War Pro Traps Triggered 22 | . 2 . . . 9 1 3 . . . 3 . . . . 2 2 . . . . Indirectly . | . . . . . . . . . . . . . . . . . . . . . . Trap Hack Attempts . | . . . . . . . . . . . . . . . . . . . . . . Triggered . | . . . . . . . . . . . . . . . . . . . . . . Disarmed 4 | . . . . . . . . . . . 4 . . . . . . . . . . Reprogrammed . | . . . . . . . . . . . . . . . . . . . . . . Reused 11 | . . . . . . . . . . . . 4 3 . . . . 2 . 2 . Traps Extracted . | . . . . . . . . . . . . . . . . . . . . . . Installed 26 | . . 1 . . . . . . . . . 6 6 . . . . 11 . 2 . Triggered 33 | . . . . . . . . . . . . 9 4 . . . . 4 1 15 . Most Traps Carried 6 | . . . . . . . . . . . . 5 5 . . . . 6 2 2 . Machines | -11 -10 -10 -10 -9 -8 -8 -7 -7 -7 -6 -6 -6 -6 -6 -5 -5 -4 -4 -4 -4 -3 ---------- Run | Scr Mat Min Exi Min Mat Sto Fac Low Dat Pro Fac Low Low Zio Pro Fac Fac Upp Upp War Pro Machines Disabled 11 | . 1 . . . 2 5 2 . . . . . . . . . . 1 . . . Max in Single Turn 1 | . 1 . . . 1 1 1 . . . . . . . . . . 1 . . . Garrison Access 9 | . . . . . 1 1 3 . . . 3 . . . . . 1 . . . . Machines Sabotaged . | . . . . . . . . . . . . . . . . . . . . . . Garrisons Compromised . | . . . . . . . . . . . . . . . . . . . . . . Overloaded Fab Kills . | . . . . . . . . . . . . . . . . . . . . . . Hacking | -11 -10 -10 -10 -9 -8 -8 -7 -7 -7 -6 -6 -6 -6 -6 -5 -5 -4 -4 -4 -4 -3 --------- Run | Scr Mat Min Exi Min Mat Sto Fac Low Dat Pro Fac Low Low Zio Pro Fac Fac Upp Upp War Pro Machines Accessed 110 | . 10 1 . . 14 13 28 1 4 . 20 1 1 . . 5 7 . 2 3 . Terminals 53 | . 8 1 . . 8 9 14 . . . 12 . . . . 1 . . . . . Fabricators 8 | . . . . . . . 3 . . . 2 . . . . 1 2 . . . . Repair Stations 14 | . 1 . . . 1 2 3 . . . 3 . . . . 2 2 . . . . Recycling Units 6 | . 1 . . . 2 1 1 . . . . . . . . . 1 . . . . Scanalyzers 8 | . . . . . 2 . 4 . . . . . . . . 1 1 . . . . Garrison Access 9 | . . . . . 1 1 3 . . . 3 . . . . . 1 . . . . Total Hacks 375 | . 41 5 . . 53 55 83 1 31 . 62 1 1 . . 15 17 . 5 5 . Successful 250 | . 30 3 . . 41 35 46 1 31 . 34 1 1 . . 9 8 . 5 5 . Failed 125 | . 11 2 . . 12 20 37 . . . 28 . . . . 6 9 . . . . Catastrophic 20 | . . . . . 1 2 8 . . . 7 . . . . 1 1 . . . . Database Lockouts . | . . . . . . . . . . . . . . . . . . . . . . Manual 158 | . 25 6 . . 9 20 31 . . . 22 . . . . 21 23 . . 1 . Terminals 181 | . 35 5 . . 30 31 41 . . . 38 . . . . 1 . . . . . Fabricators 18 | . . . . . . . 4 . . . 7 . . . . 2 5 . . . . Repair Stations 55 | . 2 . . . 2 20 9 . . . 11 . . . . 6 5 . . . . Recycling Units 12 | . 4 . . . 2 2 2 . . . . . . . . . 2 . . . . Scanalyzers 48 | . . . . . 17 . 22 . . . . . . . . 6 3 . . . . Garrison Access 17 | . . . . . 2 2 5 . . . 6 . . . . . 2 . . . . Terminal Hacks 122 | . 22 3 . . 19 10 9 1 31 . 14 1 1 . . 1 . . 5 5 . Record 33 | . 3 . . . 4 1 3 . 11 . 3 . . . . . . . 4 4 . Part Schematic 15 | . 2 1 . . 1 . . . 11 . . . . . . . . . . . . Robot Schematic 6 | . . . . . . . . . 6 . . . . . . . . . . . . Robot Analysis 10 | . 6 . . . 1 . 1 . . . 2 . . . . . . . . . . Prototype ID Bank 11 | . 4 . . . 3 . . . 3 . 1 . . . . . . . . . . Open Door 7 | . . . . . . 2 . 1 . . . 1 1 . . . . . 1 1 . Open DSF 2 | . . . . . . . . . . . 1 . . . . 1 . . . . . Branch Access Points 6 | . 1 1 . . 1 1 1 . . . 1 . . . . . . . . . . Emergency Access Points 3 | . . . . . 2 1 . . . . . . . . . . . . . . . Terminal Index 4 | . 1 . . . . 1 1 . . . 1 . . . . . . . . . . Fabricator Index 1 | . . . . . . 1 . . . . . . . . . . . . . . . Recycling Unit Index 1 | . . . . . 1 . . . . . . . . . . . . . . . . Scanalyzer Index 1 | . . . . . 1 . . . . . . . . . . . . . . . . Unreport Threat 6 | . . . . . 2 1 1 . . . 2 . . . . . . . . . . Locate Traps 4 | . 1 . . . . 1 1 . . . 1 . . . . . . . . . . Disarm Traps 1 | . . . . . . . . . . . 1 . . . . . . . . . . Dispatch Records 1 | . 1 . . . . . . . . . . . . . . . . . . . . Transport Status 1 | . . . . . 1 . . . . . . . . . . . . . . . . Investigation Status 1 | . 1 . . . . . . . . . . . . . . . . . . . . Hauler Manifests 6 | . 1 . . . 2 1 1 . . . 1 . . . . . . . . . . Registered Components 1 | . 1 . . . . . . . . . . . . . . . . . . . . Zone Layout 1 | . . 1 . . . . . . . . . . . . . . . . . . . Fabricator Hacks 9 | . . . . . . . 3 . . . 2 . . . . 2 2 . . . . Load Schematic 5 | . . . . . . . 1 . . . 2 . . . . 1 1 . . . . Build 4 | . . . . . . . 2 . . . . . . . . 1 1 . . . . Repair Station Hacks 44 | . 2 . . . 1 19 6 . . . 9 . . . . 4 3 . . . . Scan Component 25 | . 1 . . . 1 10 3 . . . 5 . . . . 3 2 . . . . Repair 19 | . 1 . . . . 9 3 . . . 4 . . . . 1 1 . . . . Recycling Unit Hacks 8 | . 2 . . . 2 1 2 . . . . . . . . . 1 . . . . Report Inventory 2 | . . . . . 1 1 . . . . . . . . . . . . . . . Retrieve Matter 2 | . 1 . . . . . 1 . . . . . . . . . . . . . . Retrieve Components 4 | . 1 . . . 1 . 1 . . . . . . . . . 1 . . . . Scanalyzer 38 | . . . . . 17 . 18 . . . . . . . . 2 1 . . . . Insert Component 19 | . . . . . 8 . 9 . . . . . . . . 1 1 . . . . Analyze 19 | . . . . . 9 . 9 . . . . . . . . 1 . . . . . Garrison Access Hacks 8 | . . . . . 1 1 3 . . . 2 . . . . . 1 . . . . Seal Access 8 | . . . . . 1 1 3 . . . 2 . . . . . 1 . . . . Unauthorized Hacks 21 | . 4 . . . 1 4 5 . . . 7 . . . . . . . . . . Terminals 17 | . 3 . . . 1 3 4 . . . 6 . . . . . . . . . . Assimilate 1 | . . . . . . . 1 . . . . . . . . . . . . . . Botnet 15 | . 3 . . . 1 3 3 . . . 5 . . . . . . . . . . Operators 1 | . . . . . . . . . . . 1 . . . . . . . . . . Fabricators 1 | . . . . . . . 1 . . . . . . . . . . . . . . Haulers 1 | . . . . . . . 1 . . . . . . . . . . . . . . Repair Stations . | . . . . . . . . . . . . . . . . . . . . . . Recycling Units 2 | . 1 . . . . 1 . . . . . . . . . . . . . . . Monitor 1 | . 1 . . . . . . . . . . . . . . . . . . . . Recyclers 1 | . . . . . . 1 . . . . . . . . . . . . . . . Scanalyzers . | . . . . . . . . . . . . . . . . . . . . . . Garrison Access 1 | . . . . . . . . . . . 1 . . . . . . . . . . Jam 1 | . . . . . . . . . . . 1 . . . . . . . . . . Data Cores Recovered 1 | . . . . . . . 1 . . . . . . . . . . . . . . Used . | . . . . . . . . . . . . . . . . . . . . . . Hacking Detections 79 | . 9 1 . . 11 11 20 . . . 17 . . . . 4 6 . . . . Full Trace Events 6 | . . . . . 1 1 2 . . . . . . . . 1 1 . . . . Feedback Events . | . . . . . . . . . . . . . . . . . . . . . . Feedback Blocked . | . . . . . . . . . . . . . . . . . . . . . . Robot Schematics Acquired 6 | . . . . . . . . . 6 . . . . . . . . . . . . Robots Built 2 | . . . . . . . 2 . . . . . . . . . . . . . . Authchips . | . . . . . . . . . . . . . . . . . . . . . . Time 116 | . . . . . . . 116 . . . . . . . . . . . . . . Total Robot Build Rating 6 | . . . . . . . 6 . . . . . . . . . . . . . . Part Schematics Acquired 51 | . 2 1 . . 6 . 7 . 11 . . . . . . 12 12 . . . . Parts Built 3 | . . . . . . . 1 . . . . . . . . 1 1 . . . . Authchips 1 | . . . . . . . 1 . . . . . . . . . . . . . . Time 147 | . . . . . . . 36 . . . . . . . . 58 53 . . . . Total Part Build Rating 12 | . . . . . . . 3 . . . . . . . . 3 6 . . . . Parts Repaired 19 | . 1 . . . . 9 3 . . . 4 . . . . 1 1 . . . . Time 665 | . 26 . . . . 282 96 . . . 208 . . . . 22 31 . . . . Parts Recycled . | . . . . . . . . . . . . . . . . . . . . . . Recycled Matter . | . . . . . . . . . . . . . . . . . . . . . . Retrieved Matter . | . . . . . . . . . . . . . . . . . . . . . . Retrieved Components 12 | . . . . . 9 . 3 . . . . . . . . . . . . . . Parts Scanalyzed 15 | . . . . . 7 . 6 . . . . . . . . 1 1 . . . . Part Schematics Acquired 14 | . . . . . 6 . 7 . . . . . . . . 1 . . . . . Parts Damaged 1 | . . . . . . . 1 . . . . . . . . . . . . . . Bothacking | -11 -10 -10 -10 -9 -8 -8 -7 -7 -7 -6 -6 -6 -6 -6 -5 -5 -4 -4 -4 -4 -3 ------------ Run | Scr Mat Min Exi Min Mat Sto Fac Low Dat Pro Fac Low Low Zio Pro Fac Fac Upp Upp War Pro Used RIF Installer . | . . . . . . . . . . . . . . . . . . . . . . Robots Hacked 2 | . . . . . . . . . . . . . . . . . 1 . . . 1 Non-combat 2 | . . . . . . . . . . . . . . . . . 1 . . . 1 Combat . | . . . . . . . . . . . . . . . . . . . . . . Robot Hacks Applied 4 | . . . . . . . . . . . . . . . . . 3 . . . 1 parse_system 2 | . . . . . . . . . . . . . . . . . 1 . . . 1 no_distress 1 | . . . . . . . . . . . . . . . . . 1 . . . . find_chute 1 | . . . . . . . . . . . . . . . . . 1 . . . . Relay Couplers Released . | . . . . . . . . . . . . . . . . . . . . . . Fabnet Peak Effective % . | . . . . . . . . . . . . . . . . . . . . . . Robots Rewired 2 | . . . . . . . . . . . . . . . . . . 2 . . . Allies Hacked . | . . . . . . . . . . . . . . . . . . . . . . Hacks Repelled . | . . . . . . . . . . . . . . . . . . . . . . Allies | -11 -10 -10 -10 -9 -8 -8 -7 -7 -7 -6 -6 -6 -6 -6 -5 -5 -4 -4 -4 -4 -3 -------- Run | Scr Mat Min Exi Min Mat Sto Fac Low Dat Pro Fac Low Low Zio Pro Fac Fac Upp Upp War Pro Total Allies 30 | . . 1 . 5 . 12 3 . . 1 . . . 4 . 2 . 2 . . . Largest Group 10 | . . 1 1 3 3 10 9 1 . 1 . . . 4 4 2 . 2 . . . Highest-Rated Group 173 | . . 31 31 57 57 173 157 19 . 96 . . . 152 152 170 . 77 . . . Highest-Rated Ally 96 | . . 31 31 31 31 31 29 19 . 96 . . . 39 39 85 . 47 . . . Zionite Dispatches 1 | . . . . . . . . . . . . . . . . 1 . . . . . Heavy 1 | . . . . . . . . . . . . . . . . 1 . . . . . Total Orders 8 | . . . . . . 1 4 1 . . . . . . . . . 2 . . . STAY 2 | . . . . . . . 1 . . . . . . . . . . 1 . . . ROAM 4 | . . . . . . . 3 1 . . . . . . . . . . . . . FOLLOW 1 | . . . . . . . . . . . . . . . . . . 1 . . . EXPLORE 1 | . . . . . . 1 . . . . . . . . . . . . . . . Ally Attacks 172 | . . . . 24 22 20 43 . . 11 . . . . 37 5 . 10 . . . Total Damage 3323 | . . . . 312 270 311 497 . . 271 . . . . 983 379 . 300 . . . Kills 27 | . . . . 7 2 3 2 . . 2 . . . . 7 3 . 1 . . . Allies Corrupted 1 | . . . . . . . . . . . . . . . . . . 1 . . . Allies Melted 3 | . . . . . . 1 . . . . . . . . . . . . . 2 . Intel | -11 -10 -10 -10 -9 -8 -8 -7 -7 -7 -6 -6 -6 -6 -6 -5 -5 -4 -4 -4 -4 -3 ------- Run | Scr Mat Min Exi Min Mat Sto Fac Low Dat Pro Fac Low Low Zio Pro Fac Fac Upp Upp War Pro Robot Analysis Total 10 | . 6 . . . 1 . 1 . . . 2 . . . . . . . . . . Derelict Logs Recovered 13 | . . . . 1 . . . 2 . 2 . 1 1 1 2 . . 2 1 . . Drone Launches 2 | . . . . . . 2 . . . . . . . . . . . . . . . Drone Recoveries 1 | . . . . . . 1 . . . . . . . . . . . . . . . Decoded 0b10 Intel 60 | . . . . . . . . . . . . . . . . 56 4 . . . . Traps 8 | . . . . . . . . . . . . . . . . 7 1 . . . . Items 48 | . . . . . . . . . . . . . . . . 46 2 . . . . Patrols 2 | . . . . . . . . . . . . . . . . 2 . . . . . Guards 1 | . . . . . . . . . . . . . . . . . 1 . . . . Exits 1 | . . . . . . . . . . . . . . . . 1 . . . . . Zionite Intel Received 10 | . . . . . . . . . . . . . . . . 4 6 . . . . Branch Access 1 | . . . . . . . . . . . . . . . . . 1 . . . . Emergency Access 1 | . . . . . . . . . . . . . . . . 1 . . . . . Component Stockpiles 1 | . . . . . . . . . . . . . . . . 1 . . . . . Prototype Stockpiles 1 | . . . . . . . . . . . . . . . . 1 . . . . . Component Schematics 1 | . . . . . . . . . . . . . . . . . 1 . . . . Prototype Schematics 1 | . . . . . . . . . . . . . . . . 1 . . . . . Unaware Analyses 1 | . . . . . . . . . . . . . . . . . 1 . . . . Active Terminals 1 | . . . . . . . . . . . . . . . . . 1 . . . . Active Garrisons 1 | . . . . . . . . . . . . . . . . . 1 . . . . Depthwide Sectors/0 1 | . . . . . . . . . . . . . . . . . 1 . . . . Exploration | -11 -10 -10 -10 -9 -8 -8 -7 -7 -7 -6 -6 -6 -6 -6 -5 -5 -4 -4 -4 -4 -3 ------------- Run | Scr Mat Min Exi Min Mat Sto Fac Low Dat Pro Fac Low Low Zio Pro Fac Fac Upp Upp War Pro Turns Passed 26554 | 76 938 971 349 622 2742 2884 2323 414 36 341 2662 852 626 1379 1640 2290 1451 2362 282 1085 229 Spaces Moved 24493 | 57 728 772 304 474 1715 1186 3639 790 91 660 2712 1169 752 1092 911 1316 1836 2190 460 1203 436 Core 538 | 10 . . . . . . . . . . . . . . 77 . . . . 15 436 Treads 2574 | . . . . . . 1016 27 . . . . . . . 802 729 . . . . . Legs 128 | . . . . . . . . . . . . . . . . 128 . . . . . Wheels 4348 | 47 728 772 304 474 1715 170 . . . . . . . . . 138 . . . . . Hover 16905 | . . . . . . . 3612 790 91 660 2712 1169 752 1092 32 321 1836 2190 460 1188 . Flight . | . . . . . . . . . . . . . . . . . . . . . . Fastest Speed 38 | 50 80 110 80 105 105 105 38 40 40 40 40 40 45 116 100 42 40 41 46 43 50 Average Speed 79 | 74 104 110 106 106 119 161 41 40 40 40 52 54 58 116 165 132 53 80 46 68 50 Slowest Speed 300 | 80 140 110 110 110 170 250 166 40 40 40 105 170 116 116 200 250 124 300 46 240 50 Overloaded Moves . | . . . . . . . . . . . . . . . . . . . . . . Propulsion Burnouts . | . . . . . . . . . . . . . . . . . . . . . . Robots Hopped . | . . . . . . . . . . . . . . . . . . . . . . Cave-ins Triggered . | . . . . . . . . . . . . . . . . . . . . . . Exploration Rate (%) 71 | 3 96 98 55 95 89 96 81 77 78 71 48 91 79 90 80 30 33 98 64 90 35 Regions Visited 21 Branch Regions 15 Pre-discovered Areas 7 | . . . . . . . . . 1 . . . . . . . 6 . . . . Known Exits Taken 19 | . 1 1 1 1 1 1 1 1 1 1 1 1 1 1 1 1 1 1 1 . . Unknown Exits Taken 2 | 1 . . . . . . . . . . . . . . . . . . . 1 . Scrap Searched 25 | . . 1 . 1 . . . 1 . 4 . 2 2 4 3 . . 4 3 . . Spaces Dug 264 | . 8 . . . 17 13 95 7 . 21 49 1 6 . 11 14 13 7 . 2 . Terrain Destroyed 1017 | . 40 75 . . 61 61 168 167 . 21 49 4 30 . 61 15 13 110 . 142 . Melee 202 | . . . . . 1 4 80 7 . 7 49 1 6 . 11 14 13 7 . 2 . Projectile 10 | . . . . . 5 . . . . . . 3 . . . 1 . . . 1 . AOE 805 | . 40 75 . . 55 57 88 160 . 14 . . 24 . 50 . . 103 . 139 . Terrain Rammed . | . . . . . . . . . . . . . . . . . . . . . . Walls Destroyed . | . . . . . . . . . . . . . . . . . . . . . . Machines Disabled . | . . . . . . . . . . . . . . . . . . . . . . Actions | -11 -10 -10 -10 -9 -8 -8 -7 -7 -7 -6 -6 -6 -6 -6 -5 -5 -4 -4 -4 -4 -3 --------- Run | Scr Mat Min Exi Min Mat Sto Fac Low Dat Pro Fac Low Low Zio Pro Fac Fac Upp Upp War Pro Total 29884 | 76 846 860 331 558 2120 1951 4329 860 90 726 3715 1327 893 1173 994 1699 2220 2691 530 1446 449 Wait 3243 | . 41 29 . 36 128 519 441 40 . 47 798 82 76 31 28 198 233 329 60 123 4 Move 24472 | 56 727 771 303 473 1714 1185 3638 789 90 659 2711 1168 751 1091 910 1315 1835 2189 459 1202 436 Hop . | . . . . . . . . . . . . . . . . . . . . . . Pick Up 209 | 8 15 2 19 5 27 18 21 1 . 1 5 11 1 4 2 21 12 22 2 11 1 Fast Attach 243 | 7 7 2 1 . 23 31 26 1 . 3 18 3 4 13 13 28 18 19 2 24 . Attach 84 | . 1 . 2 . 13 7 10 1 . . 8 10 1 1 . 7 2 13 . 5 3 Detach 65 | . 4 1 2 . 4 5 5 1 . . 6 2 1 12 . 3 5 1 2 8 3 Swap 154 | . 7 17 . 7 20 18 9 1 . 2 11 2 6 1 5 13 20 5 1 9 . Drop 281 | . 7 12 4 11 37 27 42 1 . 5 12 4 7 . 8 18 30 16 3 36 1 Fire 427 | 5 36 25 . 26 152 88 17 10 . 1 . 4 10 . 3 16 6 11 . 16 1 Melee 628 | . . . . . 1 47 120 15 . 8 146 35 22 20 25 78 57 43 1 10 . Ram 2 | . 1 . . . 1 . . . . . . . . . . . . . . . . Kick . | . . . . . . . . . . . . . . . . . . . . . . Crush 4 | . . . . . . 2 . . . . . . . . . 2 . . . . . Escape Stasis . | . . . . . . . . . . . . . . . . . . . . . . Rewire 46 | . . . . . . 4 . . . . . . 8 . . . 2 32 . . . Trap 26 | . . 1 . . . . . . . . . 6 6 . . . . 11 . 2 . Miscellaneous . | . . . . . . . . . . . . . . . . . . . . . . Route ------- -11/Scrapyard -10/Materials (discovered 4 exits: *Mat x3 / *Min) -10/Mines (discovered 3 exits: *Mat x2 / *Exi) -10/Exiles (discovered 2 exits: *Min x2) -9/Mines (discovered 2 exits: *Mat x2) -8/Materials (discovered 3 exits: *Fac x2 / *Sto) -8/Storage (discovered 2 exits: *Fac / Rec) -7/Factory (discovered 6 exits: *Fac x4 / *Low x2) -7/Lower Caves (discovered 3 exits: *Low / *Zio / *Dat) -7/Data Miner -6/Proximity Caves -6/Factory (discovered 4 exits: *Fac x2 / *Low x2) -6/Lower Caves -6/Lower Caves (discovered 2 exits: *Fac / *Zio) -6/Zion -5/Proximity Caves -5/Factory (discovered 5 exits: *Fac x2 / *Upp x2 / *Ext) -4/Factory (discovered 3 exits: *Upp x2 / Arm) -4/Upper Caves -4/Upper Caves -4/Warlord -3/Proximity Caves History --------- Turn | Location | Event 10 | -11/Scrapyard | Discovered new exit (range 15) 77 | -11/Scrapyard | Entered Materials 139 | -10/Materials | Identified exit to Mines 203 | -10/Materials | Discovered new exit (range 10) 308 | -10/Materials | Build established: Mutant 317 | -10/Materials | Repaired Wheel 530 | -10/Materials | Discovered new exit (range 4) 561 | -10/Materials | Identified exit to Materials 786 | -10/Materials | Discovered exit to Materials (range 16) 1015 | -10/Materials | Entered Mines 1036 | -10/Mines | Discovered exit to Materials (range 10) 1140 | -10/Mines | Deemed a non-threat by the Exiles lab entrance 1140 | -10/Mines | Discovered new exit (range 5) 1160 | -10/Mines | YI-UF0 nonchalantly dropped a Grenade Launcher on the ground 1172 | -10/Mines | Found a hidden stash of uninstalled traps 1559 | -10/Mines | Discovered exit to Materials (range 13) 1659 | -10/Mines | Received a Mining Laser from a helpful Derelict 1975 | -10/Mines | Identified exit to Exiles 1986 | -10/Mines | Entered Exiles 1986 | -10/Exiles | Accompanied by 1 ally 2014 | -10/Exiles | Met 8R-AWN 2023 | -10/Exiles | Discovered new exit (range 15) 2036 | -10/Exiles | Identified exit to Mines 2076 | -10/Exiles | Met EX-HEX 2093 | -10/Exiles | Build established: Scavenger-Mutant 2107 | -10/Exiles | Met EX-BIN 2120 | -10/Exiles | Met EX-DEC 2325 | -10/Exiles | Discovered exit to Mines (range 10) 2335 | -10/Exiles | Entered Mines 2344 | -9/Mines | Core integrity fell below 50% 2377 | -9/Mines | Discovered new exit (range 11) 2411 | -9/Mines | Assisted by bots powering up and referring to "LRC-V3" 2573 | -9/Mines | Discovered new exit (range 11) 2607 | -9/Mines | Identified exit to Materials 2722 | -9/Mines | Learned Materials emergency access door positions 2876 | -9/Mines | A weapon hastily lodged in a ceiling crevice suddenly fell to the ground 2957 | -9/Mines | Entered Materials 2957 | -8/Materials | Accompanied by 3 allies 2957 | -8/Materials | Evolved 4 slots: Propulsion x1, Utility x3 2962 | -8/Materials | Led the pair of lost Derelicts to an unsafe place 3245 | -8/Materials | Build established: Scavenger-Skirmisher 3665 | -8/Materials | Lost 7 parts (1p2n3u1w) 3742 | -8/Materials | Identified exit to Storage 3744 | -8/Materials | Discovered new exit (range 10) 4027 | -8/Materials | Discovered new exit (range 4) 4031 | -8/Materials | Identified exit to Factory 4451 | -8/Materials | Build established: Scavenger-Mutant 5699 | -8/Materials | Entered Storage 5790 | -8/Storage | Core integrity fell below 50% 5876 | -8/Storage | Found Prototype Processor 5876 | -8/Storage | Identified Exp. Targeting Computer 5884 | -8/Storage | Lost 6 parts (1p2n1u2w) 6490 | -8/Storage | Repaired Arm. Treads 6518 | -8/Storage | Repaired Lgt. Treads 6914 | -8/Storage | Met a pair of Derelict thieves 7026 | -8/Storage | Core integrity fell below 20% 7088 | -8/Storage | Lost 4 parts (1p1n2w) 7095 | -8/Storage | Destroyed 10 combat bots 7311 | -8/Storage | Build established: Scavenger-Assassin 7332 | -8/Storage | Identified exit to Recycling 7384 | -8/Storage | Repaired Arm. Treads 7410 | -8/Storage | Repaired Lgt. Armor Plating 7448 | -8/Storage | Repaired Arm. Treads 7482 | -8/Storage | Repaired Lgt. Armor Plating 7509 | -8/Storage | Repaired Lgt. Treads 7549 | -8/Storage | Repaired Lgt. Nuclear Core 7576 | -8/Storage | Repaired Lgt. Treads 8248 | -8/Storage | Discovered exit to Factory (range 18) 8500 | -8/Storage | Assisted by bots powering up and referring to "LRC-V3" 8583 | -8/Storage | Entered Factory 8583 | -7/Factory | Accompanied by 9 allies 8583 | -7/Factory | Evolved 2 slots: Propulsion x1, Utility x1 8867 | -7/Factory | Identified exit to Lower Caves 8919 | -7/Factory | Garrison activated, responded to threat 8972 | -7/Factory | Fabricated System Shield (x1) 9200 | -7/Factory | Discovered new exit (range 18) 9280 | -7/Factory | Build established: Scout 9574 | -7/Factory | Discovered new exit (range 10) 9630 | -7/Factory | Identified exit to Factory 9708 | -7/Factory | Repaired Corrupted Med. Storage Unit 9748 | -7/Factory | Repaired Imp. Grenade Launcher 10071 | -7/Factory | Discovered exit to Factory (range 4) 10333 | -7/Factory | Repaired Gravmag System? 10357 | -7/Factory | Discovered exit to Factory (range 11) 10615 | -7/Factory | Fabricated W-25 Informer? 10906 | -7/Factory | Entered Lower Caves 10906 | -7/Lower Caves | Accompanied by 1 ally 10968 | -7/Lower Caves | Learned location of 1 exit from Factory 10985 | -7/Lower Caves | Encountered a Warlord checkpoint 11139 | -7/Lower Caves | Discovered new exit (range 11) 11140 | -7/Lower Caves | A Derelict revealed a hidden shortcut to a safe place 11143 | -7/Lower Caves | Identified exit to Lower Caves 11251 | -7/Lower Caves | Learned Factory terminal intel 11291 | -7/Lower Caves | A Derelict revealed a hidden shortcut to meet someone special 11307 | -7/Lower Caves | Identified exit to Data Miner 11320 | -7/Lower Caves | Entered Data Miner 11320 | -7/Data Miner | Discovered new exit (range 6) 11322 | -7/Data Miner | Identified exit to Proximity Caves 11326 | -7/Data Miner | Met Data Miner 11340 | -7/Data Miner | Learned location of Section 7 (-2) 11340 | -7/Data Miner | Acquired the access code to Warlord's prototype stash 11347 | -7/Data Miner | Received God Mode back door access code from Data Miner 11356 | -7/Data Miner | Entered Proximity Caves 11402 | -6/Proximity Caves | Attracted the attention of an 0b10 checkpoint 11403 | -6/Proximity Caves | Escorted by Enhanced Grunt 11523 | -6/Proximity Caves | Learned 4 Factory zone layouts 11552 | -6/Proximity Caves | Discovered exit to Factory (range 12) 11570 | -6/Proximity Caves | Learned Factory emergency access door positions 11697 | -6/Proximity Caves | Entered Factory 11697 | -6/Factory | Evolved 2 slots: Utility x2 11698 | -6/Factory | Identified exit to Factory 11701 | -6/Factory | Loaded intel: 26 terminal locations 11776 | -6/Factory | Repaired Power Sword 11809 | -6/Factory | Discovered new exit (range 9) 11812 | -6/Factory | Identified exit to Lower Caves 12082 | -6/Factory | Build established: Derelict-Scout 12152 | -6/Factory | Repaired Broken Aerolev Unit 12865 | -6/Factory | Build established: Scavenger-Scout 13108 | -6/Factory | Lost 3 parts (2n1u) 13367 | -6/Factory | Discovered exit to Factory (range 22) 13605 | -6/Factory | Repaired Aerolev Unit 13667 | -6/Factory | Repaired Aerolev Unit 13797 | -6/Factory | First assault squad dispatched 13814 | -6/Factory | Incoming assault squad redirected 13973 | -6/Factory | Build established: Hacker-Assassin 14147 | -6/Factory | Search patrols dispatched 14359 | -6/Factory | Entered Lower Caves 14472 | -6/Lower Caves | Attracted the attention of an 0b10 base 14621 | -6/Lower Caves | Lost 6 parts (1p3n1u1w) 14786 | -6/Lower Caves | Attracted the attention of an 0b10 checkpoint 14832 | -6/Lower Caves | Lost 3 parts (2n1u) 14837 | -6/Lower Caves | Discovered new exit (range 7) 14840 | -6/Lower Caves | Identified exit to Lower Caves 14851 | -6/Lower Caves | Learned 12 Factory zone layouts 15097 | -6/Lower Caves | Build established: Scavenger-Mutant 15211 | -6/Lower Caves | Entered another Lower Caves area 15280 | -6/Lower Caves | Encountered a Warlord checkpoint 15299 | -6/Lower Caves | Discovered exit to Factory (range 2) 15704 | -6/Lower Caves | Attracted the attention of an 0b10 checkpoint 15811 | -6/Lower Caves | Discovered new exit (range 7) 15817 | -6/Lower Caves | Identified exit to Zion 15824 | -6/Lower Caves | Learned 4 Factory zone layouts 15837 | -6/Lower Caves | Entered Zion 15886 | -6/Zion | Discovered new exit (range 7) 15898 | -6/Zion | Identified exit to Proximity Caves 16228 | -6/Zion | Found CR-A16's Pointy Stick 16493 | -6/Zion | Found GAL Module 16520 | -6/Zion | Learned Factory emergency access door positions 16680 | -6/Zion | Found Prototype Hackware 16680 | -6/Zion | Identified Exp. Hacking Suite 16683 | -6/Zion | Found Prototype Processor 16683 | -6/Zion | Identified Exp. Signal Interpreter 16687 | -6/Zion | Found Prototype Processor 16687 | -6/Zion | Identified Exp. Core Analyzer 16690 | -6/Zion | Found Prototype Processor 16690 | -6/Zion | Identified Exp. Melee Analysis Suite 16695 | -6/Zion | Found Prototype Processor 16695 | -6/Zion | Identified Exp. Terrain Scan Processor 16936 | -6/Zion | Imprinted 16938 | -6/Zion | Declared Zion's savior 16976 | -6/Zion | Build established: Hacker-Mutant 17216 | -6/Zion | Entered Proximity Caves 17216 | -5/Proximity Caves | Accompanied by 4 allies 17239 | -5/Proximity Caves | Spotted B-75 Beast 17261 | -5/Proximity Caves | Core integrity fell below 50% 17266 | -5/Proximity Caves | Revealed the true nature of CR-A16's Pointy Stick 17267 | -5/Proximity Caves | Allies destroyed B-75 Beast 17294 | -5/Proximity Caves | Lost 6 parts (1p2n3u) 17726 | -5/Proximity Caves | Build established: Scavenger-Mutant 18639 | -5/Proximity Caves | Learned Factory machine intel 18699 | -5/Proximity Caves | Discovered exit to Factory (range 8) 18856 | -5/Proximity Caves | Entered Factory 18856 | -5/Factory | Evolved 2 slots: Propulsion x2 18857 | -5/Factory | Identified exit to Upper Caves 18858 | -5/Factory | Identified exit to Factory 18860 | -5/Factory | Loaded intel: 275 machine locations 19034 | -5/Factory | Retrieved Zion intel report: Prototype Stockpiles 19126 | -5/Factory | Retrieved Zion intel report: Emergency Access 19353 | -5/Factory | Lost 3 parts (3n) 19370 | -5/Factory | Repaired Imp. Medium Armor Plating 19470 | -5/Factory | Garrison activated, responded to threat 19742 | -5/Factory | Incoming investigation squad redirected 19777 | -5/Factory | Fabricated Aerolev Unit (x1) 19861 | -5/Factory | Retrieved Zion intel report: Prototype Schematics 19982 | -5/Factory | Identified exit to Extension 20240 | -5/Factory | Retrieved Zion intel report: Component Stockpiles 20241 | -5/Factory | Zion Heavy squad teleported in 20417 | -5/Factory | Terminal network hard line cut 20520 | -5/Factory | Lost 4 parts (3n1u) 20584 | -5/Factory | Lost 4 parts (3n1u) 20715 | -5/Factory | Core integrity fell below 50% 20824 | -5/Factory | Lost 3 parts (1p1n1u) 20968 | -5/Factory | Discovered exit to Factory (range 15) 21146 | -5/Factory | Entered another Factory area 21146 | -4/Factory | Evolved 2 slots: Power x1, Utility x1 21526 | -4/Factory | Retrieved Zion intel report: Branch Access 21526 | -4/Factory | Identified exit to Upper Caves 21526 | -4/Factory | Identified exit to Armory 21684 | -4/Factory | Build established: Scavenger-Scout 21687 | -4/Factory | Fabricated Adv. Cooling System? 21719 | -4/Factory | Retrieved Zion intel report: Active Garrisons 21761 | -4/Factory | Retrieved Zion intel report: Component Schematics 22156 | -4/Factory | Retrieved Zion intel report: Depthwide Sectors/0 22317 | -4/Factory | Repaired Imp. Gyrokinetic Inverter 22342 | -4/Factory | Retrieved Zion intel report: Unaware Analyses 22360 | -4/Factory | Retrieved Zion intel report: Active Terminals 22532 | -4/Factory | Build established: Hacker-Scout 22580 | -4/Factory | Terminal network hard line cut 22597 | -4/Factory | Entered Upper Caves 22786 | -4/Upper Caves | Lost 6 parts (2p2n1u1w) 22880 | -4/Upper Caves | Learned 4 Research zone layouts 22945 | -4/Upper Caves | Attracted the attention of an 0b10 checkpoint 23013 | -4/Upper Caves | Lost 5 parts (2n2u1w) 23096 | -4/Upper Caves | Spotted B-86 Titan 23166 | -4/Upper Caves | Attracted the attention of an 0b10 outpost 23199 | -4/Upper Caves | Lost 3 parts (1p1n1u) 23201 | -4/Upper Caves | Destroyed 12 combat bots 23281 | -4/Upper Caves | Build established: Hacker-Mutant 23779 | -4/Upper Caves | Lost 3 parts (1p1n1u) 24056 | -4/Upper Caves | Lost 3 parts (1p1n1u) 24150 | -4/Upper Caves | System corruption reached 10% 24853 | -4/Upper Caves | Discovered new exit (range 5) 24856 | -4/Upper Caves | Identified exit to Upper Caves 24959 | -4/Upper Caves | Entered another Upper Caves area 25124 | -4/Upper Caves | Learned Factory stockpile data 25124 | -4/Upper Caves | Learned Extension security intel 25124 | -4/Upper Caves | Learned Armory garrison access intel 25172 | -4/Upper Caves | Discovered new exit (range 20) 25179 | -4/Upper Caves | Identified exit to Warlord 25241 | -4/Upper Caves | Entered Warlord 25262 | -4/Warlord | System corruption cleaned by Quarantine Array 25317 | -4/Warlord | Discovered new exit (range 12) 25585 | -4/Warlord | Visited the Vortex Lab 25595 | -4/Warlord | Found Prototype Energy Cannon 25595 | -4/Warlord | Identified Vortex Driver 25597 | -4/Warlord | Found Vortex Driver 25602 | -4/Warlord | Warlord's base attacked by MAIN.C 25619 | -4/Warlord | Spotted B-90 Cyclops 25620 | -4/Warlord | Spotted B-86 Titan 25734 | -4/Warlord | Rebuked by Warlord 25744 | -4/Warlord | Opened Warlord's prototype stash 25762 | -4/Warlord | Found Prototype Reactor 25762 | -4/Warlord | Identified Vortex Chain Reactor 25765 | -4/Warlord | Found Prototype Device 25765 | -4/Warlord | Identified Exp. Phase Shifter 25833 | -4/Warlord | Found Prototype Special Weapon 25833 | -4/Warlord | Identified RU-N14's Throwing Claymores v3 25837 | -4/Warlord | Found RU-N14's Throwing Claymores v3 25839 | -4/Warlord | Found RU-N14's Throwing Claymores v3 25842 | -4/Warlord | Found RU-N14's Throwing Claymores v3 25843 | -4/Warlord | Found RU-N14's Throwing Claymores v3 25845 | -4/Warlord | Found RU-N14's Throwing Claymores v3 25952 | -4/Warlord | Warlord forces counterattacked 26010 | -4/Warlord | Spotted Striker 26011 | -4/Warlord | Spotted B-90 Cyclops 26016 | -4/Warlord | Spotted Executioner 26017 | -4/Warlord | Destroyed Striker 26019 | -4/Warlord | Destroyed B-90 Cyclops 26042 | -4/Warlord | Destroyed 8 combat bots 26103 | -4/Warlord | Spotted Striker 26103 | -4/Warlord | Spotted Striker 26106 | -4/Warlord | Destroyed 78-WGT(g) 26139 | -4/Warlord | Destroyed 9 combat bots 26218 | -4/Warlord | Spotted Executioner 26218 | -4/Warlord | Destroyed Executioner 26277 | -4/Warlord | Warlord base infiltrated, sounded retreat 26278 | -4/Warlord | Lost 5 parts (2n3u) 26282 | -4/Warlord | Spotted Executioner 26302 | -4/Warlord | Spotted B-90 Cyclops 26305 | -4/Warlord | Spotted B-86 Titan 26315 | -4/Warlord | Released all parts (9) 26317 | -4/Warlord | Core integrity fell below 50% 26326 | -4/Warlord | Entered Proximity Caves 26327 | -3/Proximity Caves | Destroyed 9 combat bots 26345 | -3/Proximity Caves | Lost 9 parts (3p5u1w) 26403 | -3/Proximity Caves | Spotted B-86 Titan 26523 | -3/Proximity Caves | Core integrity fell below 20% 26555 | -3/Proximity Caves | Destroyed by S-43 Plague with Heavy Machine Gun Last Messages --------------- 26315_ The unstable cave ceiling collapses. 26315_ Released Adv. Reaction Control System. 26315_ Released Gyrokinetic Inverter. 26315_ Released CR-A16's Behemoth Slayer. 26315_ Released Imp. Gyrokinetic Inverter. 26315_ Released Exp. Optical Array. 26315_ Released Mak. System Shield. 26315_ Released Lrg. Storage Unit. 26317_ The unstable cave ceiling collapses. [Achievement: Charge!!!] LOCATION=UNKNOWN GOAL=ESCAPE 26327_ Dropped Hrd. Heavy Armor Plating. 26328_ Acquired Hrd. Heavy Armor Plating. 26335_ Jacked BP-I1Y(S)... >>parse_system Reading system data... [Achievement: 10k Club] [Achievement: 20k Club] [Achievement: Achiever] Map ----- +----------------------------------------------------+ | ?????????#######??????? #?????????????????????? | | ?????????# #??????? #?????????????????????? | | ?????????# " " #???????? #?????????????????????? | | ?????????# " " #???????? #?????????????????????? | | ?????##### " #??###???# #?????????????????????? | | ????## "" #??# ##### #?????????????????????? | | ???## ##?# #?????????????????????? | | ??## ## ### ### #######?????????????????????? | | ?## ## ### ## #???????????????????????????? | | ## ## ### #?###???????????????????????? | | # #?## #### #???????????????????????? | | #### ##?# #???????????????????????? | | ## #??# ##??????????????????????? | | # ##?## ##?????????????????????? | | # ### ##?# #?????????????????????? | | ##?## #?## ##????????????????????? | | ####???# #??## #????????????????????? | | # #???#### #??## #????????????????????? | | ### #?### ##?## #???#####????????????? | | ??## #### #### #???# ##???????????? | | ???# #?# ##??# ##??????????? | | ??? #?# s #??# #??????????? | | ?? ## ## ### ##?# ###??????????? | | ??### ## ##?# #?## ### ##????????????? | | ????# ######### ##?# ## #?????????????? | | #??? ##????# ## ### @ ## #?????????????? | | #???###?????# ## #?????????????? | | #?????####### ### ##????????????? | | #?????# ### #????????????? | | ##????# #### ## ### ## #????????? | | ##???# #??# ## ### ##### ###????????? | | ###?# #??# ###### ##???# ##??????????? | | #?# #??# #??## ##???? ##???????????? | | ## ### #### #??# ##??? ????????????? | | ?## #??## #??? # ???????????? | | ??#############???## #???## ??????????? | | ?????????????????### ##????? ?????????? | | ##?###??????????## ####?????? ????????? | | ### #??????????# ##?????????? ???????? | | #??????????### #???????????????????????? | | ##????????????## ###???????????????????????? | | #####??????????????####??????????????????????????? | | ?????????????????????????????????????????????????? | | ?????????????????????????????????????????????????? | | ?????????????????????????????????????????????????? | | ?????????????????????????????????????????????????? | | ?????????????????????????????????????????????????? | | ?????????????????????????????????????????????????? | | ?????????????????????????????????????????????????? | | ?????????????????????????????????????????????????? | +----------------------------------------------------+ Best States ------------- Heat Dissipation 74 Energy Generation 35 Energy Capacity 570 Matter Stores 300 Matter Capacity 300 Sight Range 23 Robot Scan Range 18 Terrain Scan Density 10 ECM Strength 2 Armor Coverage 750 Resistance: EM 15 Power Shielding 66 Propulsion Shielding 66 Weapon Shielding 33 Phase Shifting 5 Evasion (%) 65 Targeting Accuracy 12 Melee Accuracy 8 Target Analysis 8 Core Analysis 6 Recoil Reduction 5 Energy Filtering 30 Offensive Hacking 24 Defensive Hacking 21 Authchip Count 2 Item Schematics ----------------- Lgt. Armor Plating | -10/Materials | Hacked Lgt. Ion Engine | -10/Materials | Hacked Hover Unit | -10/Mines | Hacked Airjet | -8/Materials | Scanalyzed Aerolev Unit | -8/Materials | Scanalyzed Lgt. Angular Momentum Engine | -8/Materials | Scanalyzed Imp. Hover Unit | -8/Materials | Scanalyzed Hvy. Particle Gun | -8/Materials | Scanalyzed System Shield | -8/Materials | Scanalyzed Lyr. Light Armor Plating | -7/Factory | Scanalyzed Adv. Visual Processing Unit | -7/Factory | Scanalyzed System Restoration Module | -7/Factory | Scanalyzed Reaction Control System | -7/Factory | Scanalyzed Adv. ECM Suite | -7/Factory | Scanalyzed Imp. Propulsion Shielding | -7/Factory | Scanalyzed Imp. Sensor Array | -7/Factory | Scanalyzed Combat Drone Bay | -7/Data Miner | Free Lgt. Regenerative Plating | -7/Data Miner | Free Biomechanical Wings | -7/Data Miner | Free Gravity Neutralizer | -7/Data Miner | Free Shock Maul | -7/Data Miner | Free Field Propulsion Drive | -7/Data Miner | Free Point Defense System | -7/Data Miner | Free Smartbomb Launcher | -7/Data Miner | Free Adv. Cooling System | -7/Data Miner | Free Variable Charge Gun | -7/Data Miner | Free Hvy. Siege Treads | -7/Data Miner | Free Prc. Energy Filter | -5/Factory | Z-intel Cld. Fission Core | -5/Factory | Z-intel Prc. Shock Rifle | -5/Factory | Z-intel Imp. KE Penetrator | -5/Factory | Z-intel Cld. Airjet | -5/Factory | Z-intel Fusion Reactor | -5/Factory | Z-intel Cld. Plasma Rifle | -5/Factory | Z-intel Cld. Plasma Cannon | -5/Factory | Z-intel F-cell Engine | -5/Factory | Z-intel Imp. Thermal Defense Suite | -5/Factory | Z-intel Enh. Flexi-carbon Leg | -5/Factory | Z-intel Antigrav System | -5/Factory | Scanalyzed Adv. Datajack | -4/Factory | Z-intel Adv. System Restoration Module | -4/Factory | Z-intel Cargo Storage Unit | -4/Factory | Z-intel Adv. Power Amplifier | -4/Factory | Z-intel Imp. System Guard | -4/Factory | Z-intel Hrd. Medium Armor Plating | -4/Factory | Z-intel Hvy. Flail | -4/Factory | Z-intel Field Propulsion Array | -4/Factory | Z-intel Adv. Focal Shield | -4/Factory | Z-intel Imp. Remote Shield | -4/Factory | Z-intel Greatsword | -4/Factory | Z-intel Imp. Focal Shield | -4/Factory | Z-intel Robot Schematics ------------------ L-41 Fighter | -7/Data Miner | Free S-27 Virus | -7/Data Miner | Free G-47 Trooper | -7/Data Miner | Free D-53 Grenadier | -7/Data Miner | Free B-60 Warrior | -7/Data Miner | Free Y-54 Guardian | -7/Data Miner | Free Fabricated ------------ System Shield | x1 | -7/Factory | Authchip W-25 Informer | x2 | -7/Factory | Preloaded Aerolev Unit | x1 | -5/Factory Adv. Cooling System | x1 | -4/Factory Alien Tech Used ----------------- None Achievements -------------- 10k Club 20k Club A Powerful Ally? Achiever Adventurer Backstab Charge!!! Close Call Collateral Damage Deadly Force Decoder Ring Explorer Freeware I'm Back, Baby! Knowing Is Half The Battle Let's See Who's Tougher Maybe Next Time I'll Detach My Launcher My Command Is Your Wish Oh No You Don't! Ooh, Shiny! Oops Quick And Dirty Reappropriation Respectable Loadout System Compromised The One The Oracle Treasure Hunter Use The Force Challenges ------------ None Game ------ Seed CoilProtonTrap Manual? 0 Play Time 06:33:37 Cumulative 17.1 hours Start 2022.04.09 @ 22:03:09 End 2022.04.10 @ 20:01:55 Sessions 11 Manual Loads 0 Difficulty Rogue Special Mode None Game No. 3 Rogue 3 Adventurer 0 Explorer 0 Win Type - Total 0 Types 0/0/0/0/0/0/0/0/0 Lore% 23 Gallery% 18 Achievement% 26 Wizard Run 0 Options --------- ASCII 0 Keyboard 1 Movement Numpad Keybinds 0 Fullscreen 1 Font 12/Smallcaps Map View 83x54 Tactical HUD 1 Map Filters NONE Filters NONE Steam X RUN: 157796aa-a2fc-40ea-9011-8dbf40d95ed3